lending/lending_fUSD_20240128
["ID","MTS","AMOUNT","RATE_DAILY","PERIOD"]
[312882655,1706400652300,-58000.0,0.00052437,7]
[312882656,1706400652310,-58000.0,0.00052446,7]
[312882657,1706400652319,-191.42340051,0.00052446,2]
[312882658,1706400652329,-157.0128,0.00052448,59]
[312882659,1706400652339,-58000.0,0.00052455,7]
[312882660,1706400652348,-19158.16339488,0.00052464,7]
[312882661,1706400652508,-401.9239798,0.00052464,7]
[312882662,1706400652519,-806.95,0.00052464,7]
[312882663,1706400652536,-37632.96262532,0.00052464,7]
[312882664,1706400652546,-58000.0,0.00052473,7]
[312882665,1706400652556,-58000.0,0.00052481,7]
[312882666,1706400652568,-1440.79158364,0.00052484,75]
[312882667,1706400652576,-2206.55017843,0.0005249,7]
[312882668,1706400652761,-5983.12110001,0.0003896,2]
[312882669,1706400652773,-297.65063119,0.0003896,2]
[312882670,1706400652783,-295.04,0.00051068,30]
[312882671,1706400652792,-500.0,0.00052054,31]
[312882672,1706400652801,-141.32118606,0.00052055,14]
[312882681,1706401628091,-155.04198708,0.0002979,3]
[312882682,1706401806526,-1373.78425366,0.00029784,2]
[312882683,1706401806551,-1000.0,0.00029785,4]
[312882684,1706401806575,-1706.03801292,0.0002979,3]
[312882685,1706401806601,-158.94248139,0.000299,2]
[312882686,1706401806624,-2008.17376809,0.0003,2]
[312882687,1706401806649,-155.0,0.00030515,2]
[312882688,1706401806674,-189.06,0.00030516,2]
[312882689,1706401806697,-150.0,0.00030577,2]
[312882690,1706401806722,-189.06,0.00032775,2]
[312882691,1706401806747,-509.16887593,0.00033084,4]
[312882692,1706401806776,-153.66,0.000335,2]
[312882693,1706401806800,-237.24,0.000335,5]
[312882694,1706401806823,-189.06,0.00035033,2]
[312882695,1706401806849,-158.94248139,0.0003737,2]
[312882696,1706401806873,-42981.6011,0.00038675,2]
[312882697,1706401806898,-104468.78567943,0.00038775,2]
[312882698,1706401806925,-1146.37563911,0.00038777,18]
[312882699,1706401806952,-12757.42678633,0.00038777,19]
[312882700,1706401806978,-6951.19694989,0.00038777,19]
[312882701,1706401807002,-499.99,0.00038777,2]
[312882702,1706401807026,-1320.0,0.00038777,2]
[312882703,1706401807168,-16732.9,0.00038777,2]
[312882704,1706401807192,-3607.69,0.00038777,2]
[312882705,1706401807218,-846.22078902,0.00038777,19]
[312882706,1706401807248,-153.66,0.000388,3]
[312882707,1706401807274,-161.32,0.00038854,2]
[312882708,1706401807301,-161.63933063,0.0003888,2]
[312882709,1706401807326,-1000.0,0.00039632,2]
[312882710,1706401807349,-250.0,0.00040527,2]
[312882711,1706401807373,-166.95,0.0004087,2]
[312882712,1706401807401,-166.95,0.00041296,2]
[312882713,1706401807425,-866.0,0.00041612,2]
[312882714,1706401807450,-166.95,0.00041722,2]
[312882715,1706401807475,-1000.0,0.00041763,2]
[312882716,1706401807500,-166.95,0.00042148,2]
[312882717,1706401807524,-166.95,0.00042574,2]
[312882718,1706401807549,-166.95,0.00043,2]
[312882719,1706401807578,-153.66,0.00044,4]
[312882720,1706401807604,-158.94248139,0.0004484,2]
[312882721,1706401807628,-605.0,0.0004489,2]
[312882722,1706401807652,-19876.86414371,0.0004499,2]
[312882723,1706401807677,-4000.00863621,0.00045,30]
[312882724,1706401807701,-175.0,0.00045,2]
[312882725,1706401807727,-250.0,0.00045668,111]
[312882726,1706401807751,-1072.52397639,0.00046,2]
[312882727,1706401807777,-500.0,0.00046,2]
[312882728,1706401807801,-161.32,0.00046023,2]
[312882729,1706401807826,-1000.0,0.0004606,2]
[312882730,1706401807851,-3564.81,0.0004609,2]
[312882731,1706401807875,-633.23,0.00046371,120]
[312882732,1706401807901,-262.5,0.00046784,2]
[312882733,1706401807928,-1000.0,0.00046983,2]
[312882734,1706401807953,-7471.521,0.00047033,30]
[312882735,1706401807977,-1452.71900906,0.00049022,2]
[312882736,1706401808008,-153.66,0.000493,6]
[312882737,1706401808034,-2475.29256209,0.00049531,4]
[312882738,1706401808060,-1548.0,0.0004979,2]
[312882739,1706401808086,-161.34,0.0004988,2]
[312882740,1706401808110,-561.0,0.0004989,2]
[312882741,1706401808136,-216.48993946,0.0004989,14]
[312882742,1706401808160,-52288.8074,0.0004989,2]
[312882743,1706401808186,-18110.1666,0.000499,2]
[312882744,1706401808211,-423.43923594,0.000499,22]
[312882745,1706401808234,-518.65390826,0.000499,5]
[312882746,1706401808262,-187.66772548,0.000499,2]
[312882747,1706401808287,-558.2078508,0.000499,2]
[312882748,1706401808313,-17373.0462467,0.0004998,13]
[312882749,1706401808338,-263.49556138,0.0004999,2]
[312882750,1706401808362,-56462.4003018,0.0004999,13]
[312882751,1706401808387,-162097.27856,0.0004999,11]
[312882752,1706401808412,-868.3,0.0004999,10]
[312882753,1706401808437,-187.5,0.00049999,120]
[312882754,1706401808463,-432838.1557594,0.0005,60]
[312882755,1706401808488,-359.7710561,0.0005,120]
[312882756,1706401808512,-1463.79920878,0.00050554,4]
[312882757,1706401808538,-151.8527734,0.00050944,48]
[312882758,1706401808576,-150.93223166,0.00050955,27]
[312882759,1706401808603,-4885.0,0.0005099,2]
[312882760,1706401808631,-81048.6392798,0.00051023,12]
[312882761,1706401808657,-81048.6392798,0.00051045,12]
[312882762,1706401808682,-81048.6392798,0.00051057,12]
[312882763,1706401808707,-523.91888511,0.00051062,4]
[312882764,1706401808732,-6851.95368058,0.00051062,4]
[312882765,1706401808757,-854.0,0.00051063,7]
[312882766,1706401808783,-284.46902432,0.00051064,4]
[312882767,1706401808808,-2136.88917053,0.00051064,4]
[312882768,1706401808834,-356.4982323,0.00051064,4]
[312882769,1706401808858,-164.96152334,0.00051064,4]
[312882770,1706401808883,-1492.68847402,0.00051064,4]
[312882771,1706401808908,-171.72993074,0.00051064,4]
[312882772,1706401808937,-598.94667683,0.00051064,4]
[312882773,1706401808962,-877.37870005,0.00051064,4]
[312882774,1706401808989,-155.0,0.00051064,4]
[312882775,1706401809015,-231.76884349,0.00051064,4]
[312882776,1706401809042,-155.29116631,0.00051064,4]
[312882777,1706401809066,-159.86355744,0.00051064,4]
[312882778,1706401809090,-474.50251193,0.00051064,4]
[312882779,1706401809115,-689.73808558,0.00051064,15]
[312882780,1706401809143,-81973.91831481,0.00051064,2]
[312882781,1706401809167,-224.78131996,0.00051064,4]
[312882782,1706401809193,-4147.38163494,0.00051064,4]
[312882783,1706401809218,-432.50906314,0.00051064,4]
[312882784,1706401809242,-718.56340982,0.00051064,4]
[312882785,1706401809267,-232.94373461,0.00051064,4]
[312882786,1706401809291,-1418.26758153,0.00051064,2]
[312882787,1706401809318,-92618.18658535,0.00051066,2]
[312882788,1706401809343,-4252.75750706,0.00051067,2]
[312882789,1706401809526,-151.0,0.00051132,2]
[312882790,1706401809554,-150.0,0.00051233,30]
[312882791,1706401809578,-150.0,0.00051233,30]
[312882792,1706401809602,-150.0,0.00051233,30]
[312882793,1706401809627,-150.0,0.00051233,30]
[312882794,1706401809651,-150.0,0.00051233,30]
[312882795,1706401809676,-150.0,0.00051233,30]
[312882796,1706401809702,-150.0,0.00051233,30]
[312882797,1706401809727,-150.0,0.00051233,30]
[312882798,1706401809754,-150.93223157,0.00051314,28]
[312882799,1706401809780,-634.62,0.00051381,120]
[312882800,1706401809805,-176.61,0.000515,2]
[312882801,1706401809830,-150.0,0.000516,2]
[312882802,1706401809861,-150.93223157,0.00051672,28]
[312882803,1706401809885,-540.0,0.0005189,2]
[312882804,1706401809914,-6861.385298,0.00051922,2]
[312882805,1706401809942,-81048.6392798,0.00051969,12]
[312882806,1706401809966,-7547.49448585,0.0005197,2]
[312882807,1706401809989,-435.0,0.0005199,2]
[312882808,1706401810014,-7029.77643663,0.00051999,5]
[312882809,1706401810041,-22640.32220887,0.00051999,4]
[312882810,1706401810069,-7361.13899399,0.00052,120]
[312882811,1706401810093,-11634.71,0.00052,5]
[312882812,1706401810117,-2022.88,0.00052,60]
[312882813,1706401810145,-150.93223157,0.00052031,29]
[312882814,1706401810169,-81048.6392798,0.00052044,12]
[312882815,1706401810193,-353.01,0.00052048,2]
[312882816,1706401810217,-600.0,0.00052054,2]
[312882817,1706401810243,-600.0,0.00052054,2]
[312882818,1706401810267,-600.0,0.00052054,2]
[312882819,1706401810291,-600.0,0.00052054,2]
[312882820,1706401810314,-638.51960493,0.00052054,2]
[312882821,1706401810337,-1000.0,0.00052054,2]
[312882822,1706401810360,-500.0,0.00052054,31]
[312882823,1706401810383,-1097.41,0.00052054,2]
[312882824,1706401810407,-500.0,0.00052054,31]
[312882825,1706401810434,-500.0,0.00052054,31]
[312882826,1706401810458,-764.78,0.00052054,31]
[312882827,1706401810482,-269.74545221,0.00052054,31]
[312882828,1706401810505,-500.0,0.00052054,31]
[312882829,1706401810531,-500.0,0.00052054,31]
[312882830,1706401810556,-648.19,0.00052054,2]
[312882831,1706401810580,-500.0,0.00052054,31]
[312882832,1706401810609,-674.8,0.00052054,31]
[312882833,1706401810635,-493.5862242,0.00052054,31]
[312882834,1706401810660,-244.18703101,0.00052054,31]
[312882835,1706401810685,-300.0,0.00052054,4]
[312882836,1706401810710,-1722.47,0.00052054,2]
[312882837,1706401810735,-589.34880517,0.00052054,20]
[312882838,1706401810760,-543.80092558,0.00052054,31]
[312882839,1706401810785,-500.0,0.00052054,5]
[312882840,1706401810809,-497.87026,0.00052054,31]
[312882841,1706401810833,-500.0,0.00052054,15]
[312882842,1706401810857,-1639.47,0.00052054,2]
[312882843,1706401810881,-1000.0,0.00052054,7]
[312882844,1706401810906,-1000.0,0.00052054,2]
[312882845,1706401810933,-500.0,0.00052054,31]
[312882846,1706401810957,-500.0,0.00052054,2]
[312882847,1706401810982,-500.0,0.00052054,31]
[312882848,1706401811008,-500.0,0.00052054,2]
[312882849,1706401811035,-500.0,0.00052054,31]
[312882850,1706401811063,-500.0,0.00052054,2]
[312882851,1706401811089,-500.0,0.00052054,31]
[312882852,1706401811114,-500.0,0.00052054,2]
[312882853,1706401811140,-190.24811064,0.00052054,31]
[312882854,1706401811164,-1020.9,0.00052054,2]
[312882855,1706401811189,-533.48,0.00052054,31]
[312882856,1706401811214,-306.31655103,0.00052054,31]
[312882857,1706401811239,-1107.05,0.00052054,2]
[312882858,1706401811264,-1185.23,0.00052054,7]
[312882859,1706401811291,-512.96776477,0.00052054,2]
[312882860,1706401811315,-500.0,0.00052054,31]
[312882861,1706401811341,-500.0,0.00052054,31]
[312882862,1706401811372,-304.69553093,0.00052054,7]
[312882863,1706401811406,-529.72922489,0.00052054,31]
[312882864,1706401811436,-1144.92,0.00052054,31]
[312882865,1706401811462,-500.0,0.00052054,31]
[312882866,1706401811486,-1000.0,0.00052054,7]
[312882867,1706401811512,-530.05418202,0.00052054,31]
[312882868,1706401811539,-575.78,0.00052054,31]
[312882869,1706401811563,-500.0,0.00052054,31]
[312882870,1706401811587,-500.0,0.00052054,30]
[312882871,1706401811612,-500.0,0.00052054,31]
[312882872,1706401811639,-979.32,0.00052054,2]
[312882873,1706401811665,-711.37,0.00052054,31]
[312882874,1706401811691,-500.0,0.00052054,31]
[312882875,1706401811835,-500.0,0.00052054,31]
[312882876,1706401811883,-500.0,0.00052054,31]
[312882877,1706401811910,-201.08187545,0.00052054,31]
[312882878,1706401811940,-649.51,0.00052054,31]
[312882879,1706401811964,-1074.08,0.00052054,7]
[312882880,1706401811991,-640.38,0.00052054,31]
[312882881,1706401812016,-500.0,0.00052054,31]
[312882882,1706401812045,-500.08,0.00052054,31]
[312882883,1706401812069,-500.0,0.00052054,31]
[312882884,1706401812099,-500.0,0.00052054,31]
[312882885,1706401812129,-878.07,0.00052054,31]
[312882886,1706401812154,-500.0,0.00052054,5]
[312882887,1706401812178,-596.16,0.00052054,31]
[312882888,1706401812205,-500.0,0.00052054,7]
[312882889,1706401812229,-500.0,0.00052054,7]
[312882890,1706401812255,-500.0,0.00052054,31]
[312882891,1706401812280,-718.33,0.00052054,31]
[312882892,1706401812311,-500.0,0.00052054,31]
[312882893,1706401812336,-500.0,0.00052054,31]
[312882894,1706401812360,-3491.38,0.00052054,5]
[312882895,1706401812385,-652.89,0.00052054,31]
[312882896,1706401812409,-500.0,0.00052054,31]
[312882897,1706401812433,-511.06510106,0.00052054,10]
[312882898,1706401812457,-543.19907695,0.00052054,31]
[312882899,1706401812481,-2078.91,0.00052054,31]
[312882900,1706401812508,-500.0,0.00052054,31]
[312882901,1706401812537,-500.0,0.00052054,31]
[312882902,1706401812562,-500.0,0.00052054,31]
[312882903,1706401812588,-500.0,0.00052054,31]
[312882904,1706401812613,-549.89,0.00052054,31]
[312882905,1706401812637,-500.0,0.00052054,31]
[312882906,1706401812662,-500.0,0.00052054,31]
[312882907,1706401812686,-500.0,0.00052054,31]
[312882908,1706401812712,-500.0,0.00052054,31]
[312882909,1706401812735,-500.0,0.00052054,31]
[312882910,1706401812759,-500.0,0.00052054,31]
[312882911,1706401812784,-500.0,0.00052054,31]
[312882912,1706401812809,-500.0,0.00052054,31]
[312882913,1706401812835,-500.0,0.00052054,31]
[312882914,1706401812859,-500.0,0.00052054,31]
[312882915,1706401812883,-10398.4,0.00052054,31]
[312882916,1706401812910,-500.0,0.00052054,31]
[312882917,1706401812938,-500.0,0.00052054,31]
[312882918,1706401812964,-500.0,0.00052054,31]
[312882919,1706401812989,-500.0,0.00052054,31]
[312882920,1706401813017,-500.0,0.00052054,31]
[312882921,1706401813042,-500.0,0.00052054,31]
[312882922,1706401813067,-500.0,0.00052054,31]
[312882923,1706401813099,-2113.23,0.00052054,31]
[312882924,1706401813132,-500.0,0.00052054,31]
[312882925,1706401813166,-500.0,0.00052054,31]
[312882926,1706401813196,-500.0,0.00052054,31]
[312882927,1706401813228,-500.0,0.00052054,31]
[312882928,1706401813260,-500.0,0.00052054,31]
[312882929,1706401813292,-486.96,0.00052054,31]
[312882930,1706401813321,-871.1,0.00052054,31]
[312882931,1706401813352,-500.0,0.00052054,31]
[312882932,1706401813382,-3979.01,0.00052054,5]
[312882933,1706401813411,-1367.78,0.00052054,31]
[312882934,1706401813441,-1000.0,0.00052054,7]
[312882935,1706401813468,-500.0,0.00052054,31]
[312882936,1706401813501,-154.4,0.00052055,30]
[312882937,1706401813532,-150.0,0.00052055,30]
[312882938,1706401813561,-150.0,0.00052055,30]
[312882939,1706401813592,-500.0,0.00052055,10]
[312882940,1706401813620,-168.29019775,0.00052055,7]
[312882941,1706401813652,-196.54471787,0.00052055,2]
[312882942,1706401813686,-1126.79994919,0.00052128,2]
[312882943,1706401813715,-1000.0,0.00052204,2]
[312882944,1706401813742,-5000.0,0.00052232,6]
[312882945,1706401813771,-965.55568606,0.0005224,4]
[312882946,1706401813801,-319.0,0.0005229,2]
[312882947,1706401813832,-81048.6392798,0.00052308,12]
[312882948,1706401813862,-158.94248139,0.0005231,2]
[312882949,1706401813891,-687.34991563,0.00052328,2]
[312882950,1706401813921,-500.0,0.00052328,31]
[312882951,1706401813951,-1097.41,0.00052328,2]
[312882952,1706401813982,-500.0,0.00052328,31]
[312882953,1706401814014,-514.49919765,0.00052328,31]
[312882954,1706401814043,-764.78,0.00052328,31]
[312882955,1706401814073,-500.0,0.00052328,31]
[312882956,1706401814102,-500.0,0.00052328,31]
[312882957,1706401814131,-648.19,0.00052328,2]
[312882958,1706401814160,-500.0,0.00052328,31]
[312882959,1706401814189,-674.8,0.00052328,31]
[312882960,1706401814216,-300.0,0.00052328,4]
[312882961,1706401814248,-1722.47,0.00052328,2]
[312882962,1706401814277,-500.0,0.00052328,5]
[312882963,1706401814307,-500.0,0.00052328,15]
[312882964,1706401814335,-1639.47,0.00052328,2]
[312882965,1706401814363,-1000.0,0.00052328,7]
[312882966,1706401814392,-1000.0,0.00052328,2]
[312882967,1706401814421,-500.0,0.00052328,31]
[312882968,1706401814449,-500.0,0.00052328,2]
[312882969,1706401814477,-500.0,0.00052328,31]
[312882970,1706401814666,-500.0,0.00052328,2]
[312882971,1706401814690,-500.0,0.00052328,31]
[312882972,1706401814714,-500.0,0.00052328,2]
[312882973,1706401814738,-500.0,0.00052328,31]
[312882974,1706401814762,-500.0,0.00052328,2]
[312882975,1706401814786,-1020.9,0.00052328,2]
[312882976,1706401814811,-1107.05,0.00052328,2]
[312882977,1706401814837,-1185.23,0.00052328,7]
[312882978,1706401814864,-500.0,0.00052328,31]
[312882979,1706401814890,-500.0,0.00052328,31]
[312882980,1706401814916,-1144.92,0.00052328,31]
[312882981,1706401814944,-500.0,0.00052328,31]
[312882982,1706401814967,-1000.0,0.00052328,7]
[312882983,1706401814990,-575.78,0.00052328,31]
[312882984,1706401815015,-500.0,0.00052328,31]
[312882985,1706401815039,-500.0,0.00052328,30]
[312882986,1706401815063,-500.0,0.00052328,31]
[312882987,1706401815087,-979.32,0.00052328,2]
[312882988,1706401815110,-711.37,0.00052328,31]
[312882989,1706401815135,-205.58520315,0.00052328,31]
[312882990,1706401815162,-500.0,0.00052328,31]
[312882991,1706401815187,-500.0,0.00052328,31]
[312882992,1706401815214,-649.51,0.00052328,31]
[312882993,1706401815239,-1074.08,0.00052328,7]
[312882994,1706401815266,-640.38,0.00052328,31]
[312882995,1706401815292,-500.0,0.00052328,31]
[312882996,1706401815317,-500.08,0.00052328,31]
[312882997,1706401815341,-500.0,0.00052328,31]
[312882998,1706401815366,-500.0,0.00052328,31]
[312882999,1706401815391,-878.07,0.00052328,31]
[312883000,1706401815415,-596.16,0.00052328,31]
[312883001,1706401815439,-500.0,0.00052328,7]
[312883002,1706401815463,-500.0,0.00052328,7]
[312883003,1706401815488,-500.0,0.00052328,31]
[312883004,1706401815513,-718.33,0.00052328,31]
[312883005,1706401815539,-500.0,0.00052328,31]
[312883006,1706401815564,-500.0,0.00052328,31]
[312883007,1706401815589,-3491.38,0.00052328,5]
[312883008,1706401815613,-652.89,0.00052328,31]
[312883009,1706401815638,-500.0,0.00052328,31]
[312883010,1706401815663,-2078.91,0.00052328,31]
[312883011,1706401815688,-500.0,0.00052328,31]
[312883012,1706401815715,-500.0,0.00052328,31]
[312883013,1706401815741,-500.0,0.00052328,31]
[312883014,1706401815766,-500.0,0.00052328,31]
[312883015,1706401815793,-549.89,0.00052328,31]
[312883016,1706401815820,-500.0,0.00052328,31]
[312883017,1706401815847,-500.0,0.00052328,31]
[312883018,1706401815874,-500.0,0.00052328,31]
[312883019,1706401815900,-500.0,0.00052328,31]
[312883020,1706401815928,-500.0,0.00052328,31]
[312883021,1706401815954,-500.0,0.00052328,31]
[312883022,1706401815984,-500.0,0.00052328,31]
[312883023,1706401816010,-500.0,0.00052328,31]
[312883024,1706401816036,-500.0,0.00052328,31]
[312883025,1706401816063,-500.0,0.00052328,31]
[312883026,1706401816089,-10398.4,0.00052328,31]
[312883027,1706401816115,-500.0,0.00052328,31]
[312883028,1706401816139,-500.0,0.00052328,31]
[312883029,1706401816167,-500.0,0.00052328,31]
[312883030,1706401816192,-500.0,0.00052328,31]
[312883031,1706401816220,-500.0,0.00052328,31]
[312883032,1706401816247,-500.0,0.00052328,31]
[312883033,1706401816273,-509.37740333,0.00052328,31]
[312883034,1706401816300,-2113.23,0.00052328,31]
[312883035,1706401816327,-500.0,0.00052328,31]
[312883036,1706401816355,-500.0,0.00052328,31]
[312883037,1706401816381,-500.0,0.00052328,31]
[312883038,1706401816407,-500.0,0.00052328,31]
[312883039,1706401816433,-500.0,0.00052328,31]
[312883040,1706401816458,-871.1,0.00052328,31]
[312883041,1706401816483,-500.0,0.00052328,31]
[312883042,1706401816508,-3979.01,0.00052328,5]
[312883043,1706401816534,-1367.78,0.00052328,31]
[312883044,1706401816559,-1000.0,0.00052328,7]
[312883045,1706401816586,-500.0,0.00052328,31]
[312883046,1706401816615,-150.93223157,0.0005239,29]
[312883047,1706401816641,-314.0,0.0005239,2]
[312883048,1706401816668,-3000.0,0.000524,65]
[312883049,1706401816695,-3000.0,0.0005241,65]
[312883050,1706401816722,-5362.542004,0.0005242,65]
[312883051,1706401816749,-318274.56483549,0.00052445,31]
[312883052,1706401816774,-3302.58843747,0.00052445,2]
[312883053,1706401816909,-150.01,0.00052445,2]
[312883054,1706401816940,-8475.60225025,0.0005248,2]
[312883055,1706401816966,-1260.0,0.0005249,2]
[312883056,1706401816992,-55793.44982157,0.0005249,7]
[312883057,1706401817020,-157.0128,0.00052498,59]
[312883058,1706401817047,-58000.0,0.00052499,7]
[312883059,1706401817072,-5500.0,0.000525,5]
[312883060,1706401817099,-150.0,0.000525,8]
[312883061,1706401817122,-240.87318116,0.000525,120]
[312883062,1706401817147,-1327.3730374,0.00052512,2]
[312883063,1706401817173,-40165.635535,0.00052512,2]
[312883064,1706401817197,-7048.556273,0.00052512,2]
[312883065,1706401817221,-7626.57940949,0.00052548,7]
[312883066,1706401817245,-191.46168519,0.00052581,2]
[312883067,1706401817269,-2100.0,0.00052587,30]
[312883068,1706401817295,-317.0,0.0005259,2]
[312883069,1706401817319,-547.58030855,0.00052602,31]
[312883070,1706401817344,-1097.41,0.00052602,2]
[312883071,1706401817370,-500.0,0.00052602,31]
[312883072,1706401817395,-764.78,0.00052602,31]
[312883073,1706401817420,-500.0,0.00052602,31]
[312883074,1706401817445,-500.0,0.00052602,31]
[312883075,1706401817469,-648.19,0.00052602,2]
[312883076,1706401817493,-532.33045547,0.00052602,31]
[312883077,1706401817518,-674.8,0.00052602,31]
[312883078,1706401817545,-288.78347563,0.00052602,4]
[312883079,1706401817570,-1722.47,0.00052602,2]
[312883080,1706401817595,-356.59824897,0.00052602,5]
[312883081,1706401817621,-500.0,0.00052602,15]
[312883082,1706401817646,-1639.47,0.00052602,2]
[312883083,1706401817673,-1061.81746575,0.00052602,7]
[312883084,1706401817698,-1000.0,0.00052602,2]
[312883085,1706401817724,-500.0,0.00052602,31]
[312883086,1706401817748,-500.0,0.00052602,2]
[312883087,1706401817774,-560.67803647,0.00052602,31]
[312883088,1706401817799,-500.0,0.00052602,2]
[312883089,1706401817826,-500.0,0.00052602,31]
[312883090,1706401817850,-500.0,0.00052602,2]
[312883091,1706401817876,-500.0,0.00052602,31]
[312883092,1706401817899,-500.0,0.00052602,2]
[312883093,1706401817925,-1020.9,0.00052602,2]
[312883094,1706401817950,-1107.05,0.00052602,2]
[312883095,1706401817975,-1185.23,0.00052602,7]
[312883096,1706401818000,-500.0,0.00052602,31]
[312883097,1706401818026,-500.0,0.00052602,31]
[312883098,1706401818052,-1144.92,0.00052602,31]
[312883099,1706401818077,-175.3026032,0.00052602,31]
[312883100,1706401818103,-1000.0,0.00052602,7]
[312883101,1706401818128,-575.78,0.00052602,31]
[312883102,1706401818152,-500.0,0.00052602,31]
[312883103,1706401818178,-517.1633136,0.00052602,30]
[312883104,1706401818203,-500.0,0.00052602,31]
[312883105,1706401818227,-979.32,0.00052602,2]
[312883106,1706401818252,-711.37,0.00052602,31]
[312883107,1706401818277,-500.0,0.00052602,31]
[312883108,1706401818312,-500.0,0.00052602,31]
[312883109,1706401818358,-649.51,0.00052602,31]
[312883110,1706401818406,-1074.08,0.00052602,7]
[312883111,1706401818449,-640.38,0.00052602,31]
[312883112,1706401818474,-500.0,0.00052602,31]
[312883113,1706401818498,-500.08,0.00052602,31]
[312883114,1706401818523,-500.0,0.00052602,31]
[312883115,1706401818550,-278.23401036,0.00052602,31]
[312883116,1706401818575,-878.07,0.00052602,31]
[312883117,1706401818600,-596.16,0.00052602,31]
[312883118,1706401818626,-500.0,0.00052602,7]
[312883119,1706401818650,-500.0,0.00052602,7]
[312883120,1706401818675,-500.0,0.00052602,31]
[312883121,1706401818701,-718.33,0.00052602,31]
[312883122,1706401818726,-500.0,0.00052602,31]
[312883123,1706401818751,-500.0,0.00052602,31]
[312883124,1706401818775,-3491.38,0.00052602,5]
[312883125,1706401818801,-652.89,0.00052602,31]
[312883126,1706401818825,-500.0,0.00052602,31]
[312883127,1706401818849,-2078.91,0.00052602,31]
[312883128,1706401818873,-500.0,0.00052602,31]
[312883129,1706401818897,-628.99799822,0.00052602,31]
[312883130,1706401818923,-500.0,0.00052602,31]
[312883131,1706401818948,-500.0,0.00052602,31]
[312883132,1706401818972,-549.89,0.00052602,31]
[312883133,1706401818996,-500.0,0.00052602,31]
[312883134,1706401819026,-500.0,0.00052602,31]
[312883135,1706401819051,-500.0,0.00052602,31]
[312883136,1706401819075,-500.0,0.00052602,31]
[312883137,1706401819099,-500.0,0.00052602,31]
[312883138,1706401819123,-500.0,0.00052602,31]
[312883139,1706401819149,-500.0,0.00052602,31]
[312883140,1706401819279,-596.02918928,0.00052602,31]
[312883141,1706401819307,-500.0,0.00052602,31]
[312883142,1706401819331,-500.0,0.00052602,31]
[312883143,1706401819356,-10398.4,0.00052602,31]
[312883144,1706401819383,-500.0,0.00052602,31]
[312883145,1706401819409,-500.0,0.00052602,31]
[312883146,1706401819434,-500.0,0.00052602,31]
[312883147,1706401819458,-500.0,0.00052602,31]
[312883148,1706401819482,-500.0,0.00052602,31]
[312883149,1706401819505,-390.31631238,0.00052602,31]
[312883150,1706401819529,-2113.23,0.00052602,31]
[312883151,1706401819555,-500.0,0.00052602,31]
[312883152,1706401819581,-500.0,0.00052602,31]
[312883153,1706401819607,-500.0,0.00052602,31]
[312883154,1706401819632,-500.0,0.00052602,31]
[312883155,1706401819657,-500.0,0.00052602,31]
[312883156,1706401819682,-871.1,0.00052602,31]
[312883157,1706401819707,-500.0,0.00052602,31]
[312883158,1706401819734,-3979.01,0.00052602,5]
[312883159,1706401819758,-1367.78,0.00052602,31]
[312883160,1706401819783,-1000.0,0.00052602,7]
[312883161,1706401819809,-500.0,0.00052602,31]
[312883162,1706401819833,-1126.79994919,0.00052647,2]